bitfinex/quotes_ETHUSD_20241108
["timestamp","ask_amount","ask_price","bid_price","bid_amount"]
[1731024000335,0.45772,2895.3,2894.2,0.7892]
[1731024000929,0.45772,2895.3,2894.3,0.7524]
[1731024001234,0.45772,2895.3,2894.3,1.18409856]
[1731024001432,0.45772,2895.3,2894.4,0.63740322]
[1731024001593,0.45772,2895.3,2894.4,0.06908646]
[1731024002420,0.45772,2895.3,2894.5,3.0]
[1731024002609,0.45772,2895.3,2894.9,0.01]
[1731024002910,0.55,2896.3,2895.2,0.01]
[1731024003110,0.55,2896.3,2895.1,0.01]
[1731024003290,0.55,2896.3,2894.7,3.34681904]
[1731024003291,0.55,2896.1,2895.3,0.01]
[1731024003503,0.4577,2895.8,2895.1,0.01]
[1731024004239,0.4577,2895.8,2895.3,0.01]
[1731024004438,0.4577,2895.8,2895.1,0.01]
[1731024005105,0.4577,2895.8,2895.1,0.4720213]
[1731024005305,0.4577,2895.8,2894.9,0.01]
[1731024005537,0.4577,2895.8,2894.7,0.01]
[1731024005741,0.4577,2895.8,2894.7,0.95398994]
[1731024005937,0.4577,2895.8,2895.1,3.34681904]
[1731024006139,0.4577,2896.5,2895.7,3.34681904]
[1731024007442,0.4577,2896.5,2895.7,3.35681904]
[1731024007943,0.4577,2896.5,2895.8,0.0690638]
[1731024008137,0.4577,2896.5,2895.8,3.0]
[1731024009360,0.4577,2896.5,2895.8,3.6366819]
[1731024010129,0.4577,2896.5,2895.7,0.02]
[1731024010309,0.4577,2896.5,2895.8,3.0]
[1731024010506,0.4577,2897.2,2896.3,3.34681904]
[1731024010747,0.4577,2897.2,2896.7,3.34681904]
[1731024011252,0.4577,2897.2,2896.4,4.18291904]
[1731024011411,0.4577,2897.2,2896.4,4.60221094]
[1731024011832,0.4577,2897.2,2896.5,3.01]
[1731024012850,0.4577,2897.6,2896.5,3.01]
[1731024013168,0.4577,2897.6,2896.5,3.07904196]
[1731024013371,0.4577,2897.6,2896.5,3.0]
[1731024013664,0.4577,2897.6,2896.5,3.01]
[1731024013867,0.4577,2897.6,2896.5,3.0]
[1731024014234,0.55,2897.5,2896.3,3.0]
[1731024014435,0.4577,2897.2,2896.0,0.01]
[1731024014660,0.4577,2897.2,2895.9,3.01]
[1731024014976,0.4577,2897.4,2896.4,3.34681904]
[1731024016150,0.4577,2897.4,2896.2,3.0]
[1731024016358,0.4577,2897.4,2896.3,0.01]
[1731024017566,0.4577,2897.4,2895.8,0.02]
[1731024017567,0.55,2897.3,2895.8,0.02]
[1731024017844,0.4577,2897.2,2895.9,3.0]
[1731024018056,0.4577,2897.2,2896.1,3.35681904]
[1731024018774,0.4577,2897.2,2896.1,3.34681904]
[1731024019005,0.55,2896.9,2895.6,0.01]
[1731024019137,0.4577,2896.6,2895.6,0.01]
[1731024021190,0.4577,2896.4,2895.2,3.35681904]
[1731024021388,0.4577,2896.4,2895.3,0.01]
[1731024022189,0.4577,2896.4,2895.5,3.34681904]
[1731024022593,0.4577,2896.4,2895.2,3.01]
[1731024022807,0.4577,2896.4,2895.4,3.01]
[1731024023551,0.45443431,2896.4,2895.4,3.01]
[1731024023901,3.55,2896.9,2895.4,3.0]
[1731024023902,0.55,2896.3,2895.4,3.0]
[1731024024105,0.55,2896.7,2895.4,3.0]
[1731024024538,0.5161218,2896.7,2895.4,3.0]
[1731024024903,12.14,2896.8,2895.5,0.813]
[1731024025105,12.14,2896.8,2895.4,3.01]
[1731024025306,12.14,2896.8,2895.4,3.0]
[1731024025519,1.514,2896.7,2895.4,3.33622878]
[1731024026140,3.0,2897.2,2895.4,3.0]
[1731024026339,3.0,2897.0,2895.3,0.33622878]
[1731024026552,3.0,2897.0,2895.2,3.33622878]
[1731024026787,0.55,2896.8,2895.2,3.0]
[1731024026924,0.55,2896.6,2895.2,3.0]
[1731024027319,0.55,2896.6,2895.2,3.34622878]
[1731024027529,0.55,2896.6,2895.3,0.33622878]
[1731024027840,0.55,2896.4,2895.3,0.33622878]
[1731024028021,0.55,2896.4,2895.1,3.6854173]
[1731024028222,0.55,2896.4,2895.1,3.6954173]
[1731024028421,0.55,2896.4,2895.4,3.34681904]
[1731024029420,0.55,2896.4,2895.1,3.69542568]
[1731024029927,0.54658228,2896.4,2895.1,3.69542568]
[1731024030265,0.4511,2896.3,2895.1,3.69542568]
[1731024030974,0.4511,2896.3,2895.1,0.33860664]
[1731024031476,0.4511,2896.3,2895.0,0.33860664]
[1731024032171,0.55,2896.1,2895.0,0.33860664]
[1731024032380,0.55,2895.9,2895.0,0.33860664]
[1731024032670,0.4511,2895.6,2894.8,3.68542568]
[1731024033768,0.4511,2895.6,2894.9,0.33860664]
[1731024034068,0.10620976,2895.6,2895.1,3.34681904]
[1731024034234,0.10620976,2895.6,2895.2,0.45452062]
[1731024034235,0.07720976,2895.6,2895.2,0.45452062]
[1731024034431,0.07720976,2895.6,2895.1,3.69542568]
[1731024034635,0.07720976,2895.6,2895.1,3.69594394]
[1731024034636,0.07444704,2895.6,2895.1,3.69594394]
[1731024035875,0.07444704,2895.6,2895.1,3.76502158]
[1731024036040,0.07444704,2895.6,2895.2,0.3391249]
[1731024036240,0.07444704,2895.6,2895.1,3.69594394]
[1731024036439,0.07444704,2895.6,2895.1,1.09778929]
[1731024036661,0.07444704,2895.6,2895.1,0.3491249]
[1731024038154,0.07444704,2895.6,2895.1,0.01]
[1731024038453,0.07444704,2895.6,2895.1,0.33919736]
[1731024038653,0.0744,2895.9,2895.1,4.10428287]
[1731024038854,0.0744,2895.9,2895.2,0.48949829]
[1731024039264,0.0744,2895.9,2895.3,0.33919129]
[1731024039558,0.0744,2895.9,2895.3,1.25588444]
[1731024039765,0.0744,2895.9,2895.4,1.89091804]
[1731024040074,0.0744,2895.9,2895.4,0.98422489]
[1731024040586,0.0744,2895.9,2895.2,3.0]
[1731024040748,0.0744,2895.9,2895.3,0.01]
[1731024040944,0.0744,2895.9,2895.2,3.88101326]
[1731024041144,0.0744,2895.9,2895.1,4.02520769]
[1731024041383,0.0744,2895.9,2895.1,4.03520769]
[1731024041550,0.0744,2895.9,2895.1,3.6960164]
[1731024042873,0.0109491,2895.9,2895.1,3.6960164]
[1731024043681,0.0109491,2895.9,2895.1,4.67178378]
[1731024043861,0.0109491,2895.9,2895.2,0.54624838]
[1731024045471,0.13116461,2895.9,2895.2,0.54624838]
[1731024045684,0.0109491,2895.9,2895.2,0.54624838]
[1731024047067,0.0109491,2895.9,2895.2,1.45294153]
[1731024049564,0.011,2896.8,2895.6,0.01]
[1731024049763,0.011,2896.8,2895.9,0.01]
[1731024050293,0.011,2896.8,2895.9,0.3466819]
[1731024050585,0.011,2896.8,2895.9,1.25337505]
[1731024051555,0.011,2897.2,2896.5,0.7829]
[1731024051761,0.011,2897.2,2896.5,1.68959315]
[1731024052859,0.011,2897.2,2896.5,0.7829]
[1731024053485,0.011,2897.2,2896.5,1.1968719]
[1731024054773,0.011,2897.2,2896.6,3.42585943]
[1731024055080,0.011,2897.5,2897.0,0.7732]
[1731024055279,0.011,2897.5,2897.2,3.34681904]
[1731024055495,0.011,2897.5,2897.0,0.7732]
[1731024055701,0.011,2897.5,2897.1,0.4120019]
[1731024056845,0.05178582,2897.9,2897.3,0.01]
[1731024056846,0.011,2897.8,2897.3,0.01]
[1731024056991,0.05178582,2897.9,2897.8,0.01]
[1731024057177,0.05178582,2897.9,2897.8,3.817]
[1731024057391,0.05178582,2897.9,2897.8,4.5333819]
[1731024059460,0.05178582,2897.9,2897.8,1.5233819]
[1731024060002,0.35979,2899.6,2898.3,0.02]
[1731024060206,0.35979,2899.6,2898.3,3.36681904]
[1731024060363,0.35979,2899.6,2898.4,0.3366819]
[1731024060364,0.3069817,2899.6,2898.4,0.3366819]
[1731024060567,3.34681904,2899.9,2898.3,0.02]
[1731024061006,3.88689002,2900.2,2898.4,3.34681904]
[1731024061180,3.0,2900.1,2898.4,3.34681904]
[1731024061587,3.0,2900.1,2898.5,0.06899376]
[1731024062481,0.55,2900.0,2898.5,3.07899376]
[1731024062681,1.19671676,2900.0,2898.6,0.72425128]
[1731024064710,1.19671676,2900.0,2898.7,0.07899073]
[1731024064913,0.12034851,2900.2,2898.9,0.02]
[1731024065072,6.80681904,2900.5,2898.9,0.08898288]
[1731024065268,0.74063084,2900.4,2899.1,0.7702]
[1731024065489,0.74063084,2900.4,2899.2,0.01]
[1731024065791,0.6806819,2900.4,2899.2,0.01]
[1731024066803,0.55,2900.3,2899.2,0.01]
[1731024066989,0.55,2900.3,2899.2,0.02]
[1731024067196,0.55,2900.3,2899.3,0.37902]
[1731024067708,0.11900539,2900.5,2899.6,3.35681904]
[1731024067868,0.18787244,2901.0,2899.6,3.35681904]
[1731024068278,0.18787244,2901.0,2899.6,0.01]
[1731024068778,0.18787244,2901.0,2899.4,0.8376]
[1731024069112,0.18787244,2901.0,2899.1,3.0]
[1731024069113,0.55,2900.3,2899.1,0.8176]
[1731024070113,0.55,2900.5,2899.1,0.8176]
[1731024070323,0.55,2900.5,2899.2,0.01]
[1731024070484,1.2396819,2900.5,2899.2,3.42579937]
[1731024070818,0.55,2900.7,2899.4,0.01]
[1731024071713,0.55,2900.7,2899.4,0.07897008]
[1731024071893,0.55,2900.7,2899.5,0.7831]
[1731024072089,0.55,2900.5,2899.5,0.7831]
[1731024072491,0.55,2900.5,2899.2,0.7931]
[1731024072985,0.55,2900.3,2899.2,0.7931]
[1731024073184,0.35997333,2900.4,2899.5,0.01]
[1731024073419,0.35997333,2900.4,2899.2,3.34681904]
[1731024073420,0.35997333,2900.4,2899.6,0.7982]
[1731024073629,0.35997333,2900.4,2899.3,3.01]
[1731024073630,0.35997333,2900.4,2899.3,0.7982]
[1731024074709,0.55,2900.3,2899.3,0.7982]
[1731024076804,0.55,2900.3,2899.4,0.4145019]
[1731024077399,0.47821101,2900.4,2899.4,0.4145019]
[1731024077604,0.47821101,2900.4,2899.5,0.01]
[1731024078315,0.47821101,2900.4,2899.4,0.4145019]
[1731024078515,0.47821101,2900.4,2899.5,0.01]
[1731024078927,0.47821101,2900.4,2899.3,0.8182]
[1731024079129,0.55,2900.3,2899.3,0.8182]
[1731024080725,0.11823768,2900.4,2899.3,0.8182]
[1731024081035,12.32787244,2901.0,2900.4,0.01]
[1731024081036,0.18787244,2901.0,2900.4,0.01]
[1731024081209,0.18787244,2901.0,2900.4,0.07894733]
[1731024081408,0.18787244,2901.0,2900.5,0.797]
[1731024081796,0.18787244,2901.0,2900.7,3.35681904]
[1731024081994,0.18787244,2901.0,2900.9,0.807]
[1731024082197,0.18787244,2901.0,2900.9,4.15381904]
[1731024082420,0.18787244,2901.0,2900.9,4.57020094]
[1731024083455,0.18787244,2901.0,2900.9,1.2233819]
[1731024083591,0.18787244,2901.0,2900.9,1.2133819]
[1731024083798,0.18787244,2901.0,2900.9,0.797]
[1731024084104,0.18787244,2901.0,2900.5,0.7863]
[1731024084892,0.18787244,2901.0,2900.7,0.01]
[1731024085296,0.18787244,2901.0,2900.5,0.8063]
[1731024085495,0.18787244,2901.0,2900.5,0.7963]
[1731024085715,0.18787244,2901.0,2900.6,0.37963]
[1731024087911,0.18787244,2901.0,2900.6,0.44857307]
[1731024088319,0.18787244,2901.0,2900.7,0.01]
[1731024088638,0.18787244,2901.0,2900.6,0.44857307]
[1731024088639,0.18787244,2901.0,2900.9,0.8087]
[1731024089502,0.18787244,2901.0,2900.9,1.19057]
[1731024089699,0.18787244,2901.0,2900.9,1.25950401]
[1731024090164,0.18787244,2901.0,2900.9,1.20057]
[1731024091519,0.18787244,2901.0,2900.9,1.26950448]
[1731024091835,0.1361345,2901.0,2900.9,1.26950448]
[1731024092537,0.1361345,2901.0,2900.9,4.61631505]
[1731024093053,0.1361345,2901.0,2900.9,4.54738904]
[1731024094648,0.1007557,2901.0,2900.9,4.54738904]
[1731024095446,0.005,2901.6,2901.1,0.833]
[1731024095648,0.005,2901.6,2901.1,2.25387608]
[1731024095867,0.005,2901.6,2901.1,2.18496039]
[1731024096289,0.005,2901.6,2901.1,1.69495036]
[1731024096984,0.005,2901.6,2901.5,0.8162]
[1731024097168,0.2162,2903.2,2902.4,0.8162]
[1731024097678,0.2162,2903.2,2901.9,3.35681904]
[1731024097679,0.2162,2903.2,2902.2,0.01]
[1731024098044,0.2162,2903.2,2902.4,0.01]
[1731024098266,0.1662,2903.2,2902.6,0.01]
[1731024098885,0.12007209,2903.3,2902.7,0.762]
[1731024099094,0.41953095,2903.8,2902.7,0.762]
[1731024099480,0.30936853,2905.0,2902.7,0.762]
[1731024099481,3.34681904,2904.3,2902.8,0.07889335]
[1731024099668,3.34681904,2904.3,2902.8,0.01]
[1731024100216,3.34681904,2904.0,2902.6,0.01]
[1731024100505,3.34681904,2903.7,2902.4,0.8331]
[1731024100966,0.55,2903.6,2902.4,0.8331]
[1731024101167,3.34681904,2903.7,2902.7,0.01]
[1731024101367,0.55,2903.7,2902.7,0.01]
[1731024101802,0.1662,2903.8,2902.7,0.01]
[1731024102007,0.33023345,2903.7,2902.7,0.01]
[1731024102699,0.33023345,2903.7,2902.9,0.01]
[1731024102899,0.1662,2903.8,2902.9,0.01]
[1731024105206,0.1361345,2903.9,2903.8,0.7794]
[1731024105394,0.05166489,2904.6,2904.5,0.7894]
[1731024105569,0.05166489,2904.6,2904.5,4.51320013]
[1731024105778,3.0,2906.2,2906.0,0.7623]
[1731024106008,3.0,2906.2,2906.1,3.99465683]
[1731024106221,3.0,2906.2,2905.6,0.7623]
[1731024106415,0.25,2906.1,2905.7,0.06882951]
[1731024106617,0.25,2906.1,2905.6,0.7623]
[1731024106924,3.0,2906.2,2905.8,0.01]
[1731024107283,3.0,2906.2,2905.9,0.01]
[1731024108418,3.0,2906.2,2906.1,0.01]
[1731024114244,3.3,2906.2,2905.4,0.01]
[1731024114397,0.07311107,2906.1,2905.4,0.01]
[1731024114805,0.07311107,2906.1,2904.9,0.02]
[1731024115050,0.88731111,2906.0,2904.9,0.01]
[1731024115197,0.07311107,2905.9,2904.9,0.01]
[1731024116004,0.07311107,2905.9,2904.9,0.02]
[1731024116205,0.07311107,2905.9,2904.9,0.01]
[1731024116405,0.07311107,2905.9,2905.1,0.01]
[1731024116613,0.07311107,2905.9,2904.9,0.02]
[1731024117009,0.07311107,2905.9,2905.1,0.01]
[1731024117217,0.33731111,2906.0,2905.2,0.01]
[1731024117431,0.33731111,2906.0,2905.2,0.07883022]
[1731024117623,3.3,2906.2,2905.6,0.01]
[1731024118521,3.3,2906.2,2904.8,0.7686]
[1731024118522,0.07311107,2906.1,2905.4,0.01]
[1731024118919,0.07311107,2906.1,2905.1,0.02]
[1731024119099,0.07311107,2906.1,2905.1,0.01]
[1731024119100,0.33731111,2906.0,2905.1,0.01]
[1731024119302,0.3023,2905.8,2905.1,0.02]
[1731024119937,0.3023,2905.8,2905.1,0.01]
[1731024120243,0.3023,2905.8,2905.1,0.02]
[1731024120604,0.3023,2905.8,2905.1,0.01]
[1731024120951,0.33731111,2906.0,2905.3,0.01]
[1731024121102,0.41042218,2906.0,2905.3,0.01]
[1731024121455,0.35923405,2905.9,2905.5,0.01]
[1731024122734,0.35923405,2905.9,2905.7,0.01]
[1731024123351,0.35923405,2905.9,2905.7,0.07882023]
[1731024123499,0.1361345,2906.7,2906.3,0.01]
[1731024123943,0.1361345,2906.7,2906.3,0.07880301]
[1731024124512,0.1361345,2906.7,2906.5,0.01]
[1731024124743,0.1361345,2906.7,2906.5,0.07879764]
[1731024125547,0.1361345,2906.7,2905.9,0.51166842]
[1731024126040,0.1361345,2906.7,2906.0,0.06448431]
[1731024126244,0.1361345,2906.7,2905.9,0.52166842]
[1731024126452,0.1361345,2906.7,2906.0,0.52908619]
[1731024126748,0.1361345,2906.7,2906.1,0.46461587]
[1731024126906,0.1361345,2906.7,2906.2,0.0644703]
[1731024127101,0.1361345,2906.7,2905.9,3.01]
[1731024127327,0.1361345,2906.7,2906.0,0.40972137]
[1731024127648,0.1361345,2906.7,2903.8,2.65346854]
[1731024127649,0.1361345,2906.7,2904.9,0.01]
[1731024127804,0.08601916,2906.6,2904.9,0.01]
[1731024128208,0.08601916,2906.6,2904.7,0.01]
[1731024128634,0.08601916,2906.6,2904.8,0.823]
[1731024128843,0.43093674,2906.5,2904.8,0.823]
[1731024129067,0.0860284,2906.4,2904.8,0.823]
[1731024129258,0.0860284,2906.4,2904.9,0.06455947]
[1731024129417,0.43093674,2906.5,2904.9,0.07455947]
[1731024129747,0.08602294,2906.4,2905.0,0.823]
[1731024129953,0.08602294,2906.4,2905.1,0.42995341]
[1731024130109,0.08602294,2906.4,2905.0,0.823]
[1731024130314,4.85111371,2906.3,2905.0,0.823]
[1731024130659,0.08603403,2906.2,2905.0,0.823]
[1731024130963,4.85111371,2906.3,2905.0,0.823]
[1731024130964,0.08603404,2906.5,2905.2,0.823]
[1731024131159,0.1361345,2906.7,2905.2,0.823]
[1731024131454,0.08602289,2906.6,2905.3,0.06454622]
[1731024132244,0.08602289,2906.6,2905.2,0.823]
[1731024132647,0.1361345,2906.7,2905.2,0.823]
[1731024132648,0.1361345,2906.7,2905.3,0.06454539]
[1731024132961,0.1361345,2906.7,2905.4,0.823]
[1731024133118,0.1361345,2906.7,2905.5,0.0645046]
[1731024133312,0.1361345,2906.7,2905.6,0.19182664]
[1731024133550,0.1361345,2906.7,2903.9,1.04460601]
[1731024133551,0.7912,2905.6,2903.9,1.04460601]
[1731024133760,0.0860051,2906.6,2903.2,0.01]
[1731024133761,4.09721371,2905.2,2903.2,0.01]
[1731024133963,0.7912,2905.1,2903.3,1.376812]
[1731024134258,0.7912,2905.1,2903.5,0.01]
[1731024134474,0.7912,2905.6,2903.7,0.01]
[1731024134669,0.08605009,2905.7,2903.9,0.01]
[1731024134818,0.09605009,2905.9,2904.1,0.01]
[1731024135158,0.01,2905.9,2904.1,0.01]
[1731024135837,0.01,2905.9,2904.2,1.81700118]
[1731024136539,0.01,2905.6,2904.3,3.7705]
[1731024136877,0.01,2905.4,2904.3,0.7705]
[1731024137036,0.0960535,2905.4,2903.6,0.7612]
[1731024137246,0.01,2905.2,2903.6,0.7612]
[1731024137470,0.01,2905.2,2902.6,1.04460601]
[1731024137471,0.7914,2904.7,2903.2,0.7612]
[1731024137645,0.08607689,2904.6,2903.2,0.7612]
[1731024138182,0.09607689,2904.6,2903.2,0.7612]
[1731024138473,0.01,2904.4,2903.2,0.7612]
[1731024138674,0.8101,2904.3,2902.9,0.8099]
[1731024138985,0.0960917,2904.2,2903.0,0.20212345]
[1731024139668,0.0960917,2904.2,2903.1,1.21133451]
[1731024139874,0.0960917,2904.2,2903.1,1.11133451]
[1731024140440,0.8101,2904.3,2903.1,1.11133451]
[1731024140645,0.8101,2904.3,2903.2,0.7890545]
[1731024140841,0.8101,2904.3,2903.3,1.17800118]
[1731024141066,2.47033825,2904.2,2903.2,0.4313458]
[1731024141274,2.47033825,2904.2,2902.3,2.33892248]
[1731024141275,0.01,2904.0,2902.3,0.7685]
[1731024141480,0.01,2903.6,2902.3,0.7685]
[1731024141790,0.8243,2903.5,2902.3,0.7685]
[1731024142092,0.78030001,2903.5,2901.7,0.7727]
[1731024142293,0.78030001,2903.5,2901.2,1.05460601]
[1731024142294,0.55,2903.4,2901.8,0.06889776]
[1731024142443,0.55,2903.2,2901.2,0.8016]
[1731024142755,0.58000392,2903.3,2901.3,0.40411588]
[1731024142964,4.38869955,2903.9,2901.5,0.01]
[1731024142965,0.08612244,2903.7,2901.5,0.01]
[1731024143811,3.55,2903.4,2901.4,0.8098]
[1731024144093,3.55,2903.4,2901.1,0.8243]
[1731024144094,0.55,2903.2,2901.5,0.06891301]
[1731024144381,0.55,2903.0,2901.1,0.06891262]
[1731024144597,0.08614085,2902.9,2901.2,0.19233186]
[1731024144896,0.08614085,2902.9,2901.0,0.8098]
[1731024145196,0.7904,2902.7,2901.0,0.8098]
[1731024145414,0.87654171,2902.6,2901.0,0.8098]
[1731024145891,0.87654171,2902.6,2900.9,0.79387]
[1731024146094,0.87654171,2902.6,2900.3,1.74798187]
[1731024146095,0.55,2902.3,2900.0,1.85440601]
[1731024146295,0.7904,2901.9,2900.2,1.37832]
[1731024146501,0.7904,2901.7,2900.2,1.37832]
[1731024146798,0.7904,2901.5,2900.1,0.3257214]
[1731024146956,0.08617668,2901.4,2900.0,0.8098]
[1731024147166,0.08617668,2901.4,2899.4,0.8098]
[1731024147167,0.7904,2901.3,2899.4,0.8098]
[1731024147366,0.08617978,2901.2,2899.4,0.8098]
[1731024147793,0.08617978,2901.2,2899.4,1.20866752]
[1731024148119,0.08617978,2901.2,2899.5,0.7904]
[1731024148120,0.8288,2901.1,2899.5,0.7904]
[1731024148281,3.55,2901.8,2899.4,1.20866752]
[1731024148282,0.08618683,2901.0,2899.6,0.19990675]
[1731024148600,0.7905,2900.9,2899.7,0.06895295]
[1731024148966,0.7905,2900.9,2899.7,0.06895222]
[1731024149166,0.7905,2901.4,2899.8,0.8015]
[1731024149393,0.08617867,2901.3,2899.9,0.06894294]
[1731024149598,0.7905,2901.4,2899.9,0.06894294]
[1731024149599,0.7905,2901.4,2899.9,0.34594961]
[1731024149897,0.7905,2901.4,2900.0,0.99336919]
[1731024150476,0.7905,2901.4,2900.0,0.59450167]
[1731024150720,0.8233,2902.5,2900.3,0.8298]
[1731024151008,0.8233,2902.5,2901.0,0.01]
[1731024151195,0.13784462,2903.0,2901.5,3.0]
[1731024151390,0.13784462,2903.0,2901.6,0.06889518]
[1731024151391,0.05170132,2903.0,2901.6,0.06889518]
[1731024151568,0.05170132,2903.0,2901.7,0.30688952]
[1731024152014,0.05170132,2903.0,2900.4,1.84698823]
[1731024152015,0.7668,2902.8,2900.6,0.8339]
[1731024152181,0.7668,2902.6,2900.6,0.8339]
[1731024152379,0.7668,2902.6,2900.7,0.06891351]
[1731024152694,0.7668,2902.6,2900.8,0.01]
[1731024153012,0.7668,2902.6,2900.9,3.0]
[1731024153308,0.7668,2902.6,2901.1,0.795]
[1731024153512,0.7668,2902.6,2901.2,0.06890265]
[1731024153872,0.7668,2902.6,2901.1,0.795]
[1731024154486,0.55,2902.3,2900.2,1.04460601]
[1731024154741,0.7962,2902.0,2900.2,1.04460601]
[1731024154952,0.7962,2901.8,2900.2,1.04460601]
[1731024155155,0.7962,2901.8,2900.8,0.8212]
[1731024155362,4.38869955,2903.5,2900.8,0.8212]
[1731024155363,0.7962,2902.3,2900.9,0.91996875]
[1731024155534,0.7962,2902.3,2901.0,0.21400363]
[1731024155738,0.7962,2902.3,2901.1,0.91996438]
[1731024155940,0.7962,2902.3,2901.1,0.85105672]
[1731024156136,0.7962,2902.3,2901.1,0.84105672]
[1731024157080,0.7962,2902.3,2901.2,0.55]
[1731024157253,0.7962,2902.3,2901.3,0.95269698]
[1731024158250,0.7962,2902.3,2901.4,0.7962]
[1731024158467,0.7962,2902.3,2901.5,0.1748897]
[1731024158983,0.7962,2902.3,2901.7,3.0]
[1731024159141,0.8256,2902.9,2901.6,0.88340561]
[1731024159350,0.8256,2902.9,2901.7,0.95269698]
[1731024159653,0.8256,2902.9,2901.8,0.1767197]
[1731024159851,0.8256,2902.9,2902.0,3.0]
[1731024160170,0.8256,2902.9,2901.8,0.1767197]
[1731024160377,0.08613201,2902.8,2901.8,0.1767197]
[1731024160550,0.08613201,2902.8,2901.2,0.8317]
[1731024160893,0.08613201,2902.8,2901.2,0.8417]
[1731024161053,0.8256,2902.9,2901.2,4.39466682]
[1731024161246,0.8256,2902.9,2901.3,0.56296682]
[1731024161448,0.8256,2902.9,2901.4,0.50836733]
[1731024161643,0.8256,2902.9,2901.4,0.43946668]
[1731024161992,0.8256,2902.9,2901.5,0.06890067]
[1731024162355,0.8256,2902.9,2901.4,0.43946668]
[1731024163285,0.8256,2902.9,2901.4,1.0024335]
[1731024163586,0.55,2902.1,2901.4,0.56296682]
[1731024163788,4.09963105,2902.3,2900.3,0.06893201]
[1731024163789,0.7695,2901.8,2900.3,0.06893201]
[1731024165081,0.7695,2901.8,2900.4,5.43313105]
[1731024165396,0.7695,2901.8,2900.6,0.55]
[1731024165588,0.7695,2901.8,2900.4,0.7935]
[1731024165589,0.7695,2901.8,2900.7,0.06891717]
[1731024165759,0.7695,2901.8,2901.5,3.0]
[1731024165963,0.7695,2901.8,2901.5,0.3]
[1731024166163,0.7695,2901.8,2900.5,0.55]
[1731024166164,0.7695,2901.8,2900.5,0.56]
[1731024166780,0.7695,2901.8,2900.6,0.06891859]
[1731024167660,0.7695,2901.8,2900.6,0.06891861]
[1731024167897,0.7743,2902.7,2901.3,0.8203]
[1731024168054,0.7743,2902.7,2901.4,0.62889443]
[1731024168366,0.7743,2902.7,2901.5,0.44491944]
[1731024168556,0.7743,2902.7,2901.6,0.57480548]
[1731024170951,0.7743,2902.7,2901.7,0.06890638]
[1731024171295,0.05170132,2903.0,2901.8,0.7741]
[1731024171453,0.05170132,2903.0,2901.8,1.34890548]
[1731024171652,0.05170132,2903.0,2901.9,0.19926173]
[1731024171860,0.05170132,2903.0,2902.0,0.55]
[1731024172054,0.05170132,2903.0,2902.1,0.06888395]
[1731024172291,0.05170132,2903.0,2902.2,0.57480548]
[1731024173913,0.05170132,2903.0,2902.2,3.64368564]
[1731024174123,0.05170132,2903.0,2902.3,0.80377952]
[1731024174416,0.05170132,2903.0,2902.4,0.64368684]
[1731024174913,0.05170132,2903.0,2902.6,3.8203]
[1731024175215,0.8326,2904.9,2903.0,3.0]
[1731024175435,0.8326,2904.9,2903.8,3.0]
[1731024175725,0.8326,2904.9,2904.1,4.39410953]
[1731024175872,0.8326,2904.9,2904.2,3.06884343]
[1731024176077,0.7644,2905.8,2904.3,0.7811]
[1731024176274,0.7644,2905.8,2904.6,3.0]
[1731024176477,0.7644,2905.8,2904.7,0.73941095]
[1731024176720,0.7644,2905.8,2904.8,0.06882706]
[1731024177090,0.7644,2905.8,2904.7,0.73941095]
[1731024177520,0.7644,2906.6,2904.8,0.7811]
[1731024177725,0.08602202,2906.5,2905.0,3.0]
[1731024177923,0.7644,2906.4,2904.3,0.7811]
[1731024178218,0.7644,2906.2,2904.1,3.0]
[1731024178371,0.1561345,2906.7,2904.1,3.0]
[1731024178372,0.88104177,2906.1,2904.2,0.73941095]
[1731024178979,0.795,2905.9,2904.2,0.73941095]
[1731024179205,0.08604156,2905.8,2904.2,0.73941095]
[1731024179415,0.08604156,2905.8,2904.3,0.3739411]
[1731024180212,0.08604156,2905.8,2904.4,0.06883327]
[1731024180415,0.08604159,2905.7,2904.3,0.3739411]
[1731024180615,0.795,2905.4,2903.5,0.7971]
[1731024180816,0.55,2905.5,2903.5,0.7971]
[1731024180817,0.795,2905.2,2903.5,0.7971]
[1731024181021,0.08605789,2905.1,2903.5,0.7971]
[1731024181315,0.795,2905.1,2903.5,0.7971]
[1731024182778,0.86196206,2905.0,2903.1,5.21390953]
[1731024182982,0.7759,2904.8,2903.2,0.55559185]
[1731024183281,0.7759,2904.4,2902.6,0.8198]
[1731024183518,0.7759,2904.2,2902.4,1.04460601]
[1731024183824,0.55,2904.5,2902.3,4.39410953]
[1731024183825,0.7802,2904.1,2902.3,4.39410953]
[1731024184028,0.7802,2903.9,2902.4,0.52139095]
[1731024184330,0.08609789,2903.8,2901.9,4.77596854]
[1731024184482,0.7802,2903.9,2902.0,0.37185901]
[1731024184692,0.7802,2903.9,2902.0,0.78305153]
[1731024185028,0.7802,2903.9,2902.1,0.62317671]
[1731024185593,0.8185,2903.7,2902.1,0.62317671]
[1731024185823,0.90460891,2903.6,2902.2,0.06888204]
[1731024186527,0.90460891,2903.6,2902.1,0.62317671]
[1731024186528,0.8185,2903.6,2902.1,0.62317671]
[1731024186839,0.8185,2903.6,2902.2,0.06888122]
[1731024187835,0.8185,2903.6,2902.1,0.62317671]
[1731024187991,0.8185,2903.6,2902.2,0.36231767]
[1731024189237,0.09610891,2904.2,2901.5,4.39410953]
[1731024189238,0.7662,2903.4,2901.5,4.39410953]
[1731024189457,0.01,2904.0,2901.5,4.39410953]
[1731024189458,0.7662,2903.2,2901.5,4.39410953]
[1731024189626,0.7662,2903.2,2901.8,0.06889517]
[1731024190153,0.7662,2903.2,2901.7,0.47659685]
[1731024190354,0.814,2903.0,2901.7,0.47659685]